[Event "World Junior U20 Girls 2018"]
[Site "Gebze"]
[Date "2018.09.12"]
[Round "8"]
[White "Ayan, Bengu Sena"]
[Black "Anacoglu, Cisel"]
[Result "0-1"]
[ECO "E84"]
[WhiteElo "1976"]
[BlackElo "1791"]
[Annotator "NA"]
[PlyCount "112"]
[EventDate "2018.09.05"]
[EventType "swiss"]
[EventCountry "TUR"]
[SourceTitle "playchess.com"]
[Source "ChessBase"]
[SourceQuality "1"]
[TimeControl "40/5400+30:1800+30"]

1. d4 {[%emt 0:00:30]} Nf6 {[%emt 0:00:30]} 2. c4 {[%emt 0:00:30]} g6 {[%emt 0:00:30]} 3. f3 {[%emt 0:00:00]} Bg7 {[%emt 0:00:00]} 4. e4 {[%emt 0:00:00]} d6 {[%emt 0:00:00]} 5. Nc3 {[%emt 0:00:00]} O-O {[%emt 0:00:30]} 6. Be3 {[%emt 0:00:00]} Nc6 {[%emt 0:00:30]} 7. Nge2 {[%emt 0:00:30]} a6 {[%emt 0:00:30]} 8. Qd2 {[%emt 0:00:30]} Rb8 {[%emt 0:00:30]} 9. Rc1 {[%emt 0:00:30]} Bd7 {[%emt 0:00:30]} 10. Nd1 {[%emt 0:00:00]} e5 {[%emt 0:10:30]} 11. d5 {[%emt 0:03:00]} Ne7 {[%emt 0:00:00]} 12. Nf2 {[%emt 0:05:30]} Nc8 {[%emt 0:10:00]} 13. g4 {[%emt 0:09:30]} h5 {[%emt 0:00:30]} 14. h3 {[%emt 0:00:30]} c5 {[%emt 0:02:30]} 15. Bg5 {[%emt 0:00:30]} h4 {[%emt 0:09:30]} 16. Bg2 {[%emt 0:04:30]} Kh7 {[%emt 0:05:30]} 17. Bxh4 {[%emt 0:15:30]} b5 {[%emt 0:03:30]} 18. Bg5 {[%emt 0:05:30]} bxc4 {[%emt 0:00:30]} 19. h4 {[%emt 0:03:30]} Qb6 {[%emt 0:02:30]} 20. Rb1 {[%emt 0:02:30]} Qb4 {[%emt 0:13:30]} 21. Nc3 {[%emt 0:00:00]} Na7 {[%emt 0:04:30]} 22. h5 {[%emt 0:01:00]} Kg8 {[%emt 0:00:30]} 23. Nfd1 {[%emt 0:11:30]} Nb5 {[%emt 0:03:30]} 24. Rc1 {[%emt 0:12:30]} Nd4 {[%emt 0:01:30]} 25. Qf2 {[%emt 0:02:30]} Ba4 {[%emt 0:15:39]} 26. h6 {[%emt 0:01:30]} Bxd1 {[%emt 0:07:24]} 27. hxg7 {[%emt 0:01:30]} Kxg7 {[%emt 0:00:06]} 28. Bh6+ {[%emt 0:05:22]} Kg8 {[%emt 0:00:05]} 29. Rxd1 {[%emt 0:01:05]} Qxb2 {[%emt 0:03:05]} 30. Qxb2 {[%emt 0:03:30]} Rxb2 {[%emt 0:00:00]} 31. Bxf8 {[%emt 0:03:02]} Rxg2 {[%emt 0:00:08]} 32. Kf1 {[%emt 0:02:38]} Rc2 {[%emt 0:00:05]} 33. Be7 {[%emt 0:00:36]} Rxc3 {[%emt 0:00:09]} 34. Kg2 {[%emt 0:03:29]} Rc2+ {[%emt 0:01:18]} 35. Kh3 {[%emt 0:01:06]} Ne8 {[%emt 0:00:20]} 36. Rh2 {[%emt 0:00:52]} Rxh2+ {[%emt 0:03:55]} 37. Kxh2 {[%emt 0:00:30]} c3 {[%emt 0:00:30]} 38. Rc1 {[%emt 0:00:30]} c2 {[%emt 0:00:00]} 39. Kg2 {[%emt 0:00:02]} f5 {[%emt 0:04:11]} 40. gxf5 {[%emt 0:01:57]} gxf5 {[%emt 0:00:00]} 41. Kf2 {[%emt 0:04:21]} Kf7 {[%emt 0:03:35]} 42. Bd8 {[%emt 0:02:30]} Ng7 {[%emt 0:03:30]} 43. Bg5 {[%emt 0:06:30]} f4 {[%emt 0:00:30]} 44. Bd8 {[%emt 0:01:04]} Nh5 {[%emt 0:01:30]} 45. Ba5 {[%emt 0:00:43]} Ng3 {[%emt 0:00:30]} 46. Bd2 {[%emt 0:00:13]} c4 {[%emt 0:03:30]} 47. Re1 {[%emt 0:00:57]} Ke7 {[%emt 0:00:30]} 48. Bb4 {[%emt 0:03:07]} Nge2 {[%emt 0:02:52]} 49. Bd2 {[%emt 0:00:09]} c3 {[%emt 0:00:30]} 50. Bc1 {[%emt 0:01:08]} Nxc1 {[%emt 0:00:30]} 51. Rxc1 {[%emt 0:00:30]} Kd7 {[%emt 0:00:00]} 52. Kg2 {[%emt 0:00:05]} Kc7 {[%emt 0:00:14]} 53. Kh3 {[%emt 0:00:00]} Kb6 {[%emt 0:00:03]} 54. Kg4 {[%emt 0:00:01]} Kc5 {[%emt 0:01:25]} 55. Kh5 {[%emt 0:00:13]} Kc4 {[%emt 0:00:00]} 56. Kg6 {[%emt 0:00:38]} Kd3 {[%emt 0:00:02]} 0-1

[Event "World Junior U20 Girls 2018"]
[Site "Gebze"]
[Date "2018.09.12"]
[Round "8"]
[White "Celik, Eda"]
[Black "Ince, Safiye Oyku"]
[Result "1/2-1/2"]
[ECO "A04"]
[WhiteElo "1970"]
[BlackElo "1905"]
[Annotator "NA"]
[PlyCount "73"]
[EventDate "2018.09.05"]
[EventType "swiss"]
[EventCountry "TUR"]
[SourceTitle "playchess.com"]
[Source "ChessBase"]
[SourceQuality "1"]
[TimeControl "40/5400+30:1800+30"]

1. e4 {[%emt 0:00:30]} c5 {[%emt 0:00:30]} 2. Nf3 {[%emt 0:00:30]} e6 {[%emt 0:00:00]} 3. d3 {[%emt 0:00:30]} Nc6 {[%emt 0:00:00]} 4. g3 {[%emt 0:00:00]} g6 {[%emt 0:00:30]} 5. Bg2 {[%emt 0:00:00]} Bg7 {[%emt 0:00:00]} 6. O-O {[%emt 0:00:30]} Nge7 {[%emt 0:00:00]} 7. c3 {[%emt 0:00:00]} O-O {[%emt 0:00:30]} 8. Re1 {[%emt 0:00:00]} e5 {[%emt 0:00:30]} 9. Nbd2 {[%emt 0:00:30]} d6 {[%emt 0:01:30]} 10. a3 {[%emt 0:01:30]} a5 {[%emt 0:01:30]} 11. a4 {[%emt 0:01:30]} b6 {[%emt 0:01:30]} 12. Nc4 {[%emt 0:01:30]} Ba6 {[%emt 0:00:30]} 13. Ng5 {[%emt 0:24:30]} h6 {[%emt 0:06:30]} 14. Nh3 {[%emt 0:01:30]} Rb8 {[%emt 0:03:30]} 15. f4 {[%emt 0:02:30]} b5 {[%emt 0:03:30]} 16. axb5 {[%emt 0:01:30]} Bxb5 {[%emt 0:00:00]} 17. f5 {[%emt 0:16:30]} d5 {[%emt 0:01:00]} 18. exd5 {[%emt 0:04:30]} Nxd5 {[%emt 0:01:30]} 19. fxg6 {[%emt 0:07:30]} fxg6 {[%emt 0:03:30]} 20. Qg4 {[%emt 0:02:30]} Kh7 {[%emt 0:06:30]} 21. Be4 {[%emt 0:03:30]} Nce7 {[%emt 0:09:30]} 22. Bg5 {[%emt 0:24:34]} Qd7 {[%emt 0:02:30]} 23. Qxd7 {[%emt 0:03:18]} Bxd7 {[%emt 0:00:30]} 24. Bxe7 {[%emt 0:00:25]} Nxe7 {[%emt 0:00:30]} 25. Bg2 {[%emt 0:01:12]} Be6 {[%emt 0:06:30]} 26. Nxe5 {[%emt 0:01:16]} Rxb2 {[%emt 0:00:00]} 27. Nf4 {[%emt 0:00:10]} Ba2 {[%emt 0:03:00]} 28. Nc4 {[%emt 0:00:53]} Bxc4 {[%emt 0:01:30]} 29. Rxe7 {[%emt 0:00:30]} Bf7 {[%emt 0:00:30]} 30. Rxa5 {[%emt 0:00:30]} g5 {[%emt 0:00:00]} 31. Be4+ {[%emt 0:00:49]} Kg8 {[%emt 0:00:00]} 32. Ng6 {[%emt 0:00:18]} Bxg6 {[%emt 0:00:30]} 33. Bxg6 {[%emt 0:00:09]} Bxc3 {[%emt 0:00:30]} 34. Ra1 {[%emt 0:00:52]} Bd4+ {[%emt 0:04:30]} 35. Kh1 {[%emt 0:00:06]} Rxh2+ {[%emt 0:00:30]} 36. Kxh2 {[%emt 0:00:30]} Bxa1 {[%emt 0:00:00]} 37. Be4 {[%emt 0:00:50]} 1/2-1/2

[Event "World Junior U20 Girls 2018"]
[Site "Gebze"]
[Date "2018.09.12"]
[Round "8"]
[White "Meenal Gupta"]
[Black "Hilario, Aleyla"]
[Result "1-0"]
[ECO "C96"]
[WhiteElo "1963"]
[BlackElo "2203"]
[Annotator "NA"]
[PlyCount "59"]
[EventDate "2018.09.05"]
[EventType "swiss"]
[EventCountry "TUR"]
[SourceTitle "playchess.com"]
[Source "ChessBase"]
[SourceQuality "1"]
[TimeControl "40/5400+30:1800+30"]

1. e4 {[%emt 0:00:30]} e5 {[%emt 0:00:30]} 2. Nf3 {[%emt 0:00:30]} Nc6 {[%emt 0:00:30]} 3. Bb5 {[%emt 0:00:00]} a6 {[%emt 0:00:00]} 4. Ba4 {[%emt 0:00:00]} Nf6 {[%emt 0:00:00]} 5. O-O {[%emt 0:00:30]} Be7 {[%emt 0:00:30]} 6. Re1 {[%emt 0:00:00]} b5 {[%emt 0:00:00]} 7. Bb3 {[%emt 0:00:00]} O-O {[%emt 0:00:00]} 8. h3 {[%emt 0:02:30]} d6 {[%emt 0:00:00]} 9. c3 {[%emt 0:00:30]} Na5 {[%emt 0:00:00]} 10. Bc2 {[%emt 0:00:30]} c5 {[%emt 0:00:30]} 11. d4 {[%emt 0:00:00]} Nd7 {[%emt 0:02:30]} 12. a4 {[%emt 0:06:00]} Rb8 {[%emt 0:03:30]} 13. Nbd2 {[%emt 0:01:30]} exd4 {[%emt 0:12:30]} 14. cxd4 {[%emt 0:00:30]} Nc6 {[%emt 0:00:00]} 15. axb5 {[%emt 0:08:30]} axb5 {[%emt 0:00:00]} 16. Nf1 {[%emt 0:00:00]} Bf6 {[%emt 0:01:30]} 17. Be3 {[%emt 0:02:00]} Qb6 {[%emt 0:00:30]} 18. e5 {[%emt 0:03:30]} dxe5 {[%emt 0:09:30]} 19. dxc5 {[%emt 0:00:30]} Nxc5 {[%emt 0:06:30]} 20. Bxh7+ {[%emt 0:00:30]} Kh8 {[%emt 0:01:30]} 21. Nxe5 {[%emt 0:07:30]} Kxh7 {[%emt 0:09:30]} 22. Qc2+ {[%emt 0:11:30]} Kg8 {[%emt 0:04:30]} 23. Bxc5 {[%emt 0:03:30]} Qb7 {[%emt 0:02:30]} 24. Bxf8 {[%emt 0:01:30]} Nxe5 {[%emt 0:00:30]} 25. f4 {[%emt 0:08:30]} Nf3+ {[%emt 0:05:30]} 26. gxf3 {[%emt 0:00:30]} Bd4+ {[%emt 0:00:00]} 27. Kg2 {[%emt 0:00:30]} Bxh3+ {[%emt 0:07:00]} 28. Kxh3 {[%emt 0:00:30]} Qxf3+ {[%emt 0:00:30]} 29. Ng3 {[%emt 0:00:30]} Rb6 {[%emt 0:00:00]} 30. Bd6 {[%emt 0:00:00]} 1-0

[Event "World Junior U20 Girls 2018"]
[Site "Gebze"]
[Date "2018.09.12"]
[Round "8"]
[White "Vujcic, Milena"]
[Black "Huttl, Sofie"]
[Result "1/2-1/2"]
[ECO "C60"]
[WhiteElo "1955"]
[BlackElo "1727"]
[Annotator "NA"]
[PlyCount "71"]
[EventDate "2018.09.05"]
[EventType "swiss"]
[EventCountry "TUR"]
[SourceTitle "playchess.com"]
[Source "ChessBase"]
[SourceQuality "1"]
[TimeControl "40/5400+30:1800+30"]

1. e4 {[%emt 0:00:30]} e5 {[%emt 0:00:30]} 2. Nf3 {[%emt 0:00:30]} Nc6 {[%emt 0:00:30]} 3. Bb5 {[%emt 0:00:30]} Nge7 {[%emt 0:00:00]} 4. c3 {[%emt 0:00:00]} d5 {[%emt 0:00:00]} 5. Nxe5 {[%emt 0:04:00]} dxe4 {[%emt 0:00:00]} 6. Nxc6 {[%emt 0:02:30]} bxc6 {[%emt 0:00:00]} 7. Be2 {[%emt 0:00:30]} Bf5 {[%emt 0:03:30]} 8. O-O {[%emt 0:00:30]} Ng6 {[%emt 0:07:30]} 9. f3 {[%emt 0:08:30]} Bc5+ {[%emt 0:27:30]} 10. Kh1 {[%emt 0:01:30]} O-O {[%emt 0:18:30]} 11. fxe4 {[%emt 0:03:30]} Bxe4 {[%emt 0:00:30]} 12. d4 {[%emt 0:05:30]} Bd6 {[%emt 0:00:30]} 13. Qe1 {[%emt 0:08:30]} Qh4 {[%emt 0:06:30]} 14. Qxh4 {[%emt 0:01:30]} Nxh4 {[%emt 0:00:00]} 15. Rg1 {[%emt 0:05:30]} Rfe8 {[%emt 0:04:00]} 16. Bf1 {[%emt 0:02:30]} c5 {[%emt 0:01:30]} 17. Bg5 {[%emt 0:03:30]} Nf5 {[%emt 0:01:30]} 18. Nd2 {[%emt 0:01:30]} Bc6 19. Bd3 {[%emt 0:03:30]} Ne3 {[%emt 0:07:00]} 20. Nc4 {[%emt 0:06:30]} Nxc4 {[%emt 0:00:40]} 21. Bxc4 {[%emt 0:00:30]} cxd4 {[%emt 0:00:20]} 22. Rgf1 {[%emt 0:05:30]} Kh8 {[%emt 0:01:32]} 23. cxd4 {[%emt 0:02:30]} f6 {[%emt 0:00:25]} 24. d5 {[%emt 0:04:30]} fxg5 {[%emt 0:03:41]} 25. dxc6 {[%emt 0:01:30]} Rab8 {[%emt 0:01:02]} 26. b3 {[%emt 0:00:30]} Rf8 {[%emt 0:02:50]} 27. Rfd1 {[%emt 0:01:30]} Rf2 {[%emt 0:01:55]} 28. a4 {[%emt 0:01:30]} g6 {[%emt 0:02:23]} 29. Rac1 {[%emt 0:03:30]} Rd8 {[%emt 0:02:40]} 30. Kg1 {[%emt 0:00:30]} Rf6 {[%emt 0:01:08]} 31. Kh1 {[%emt 0:02:30]} Rdf8 {[%emt 0:00:42]} 32. Bb5 {[%emt 0:00:30]} Kg7 {[%emt 0:00:29]} 33. Rf1 {[%emt 0:03:29]} Rxf1+ {[%emt 0:00:56]} 34. Bxf1 {[%emt 0:00:20]} Rf5 {[%emt 0:00:41]} 35. Bb5 {[%emt 0:00:13]} h5 {[%emt 0:00:58]} 36. Rd1 {[%emt 0:04:00]} 1/2-1/2

[Event "World Junior U20 Girls 2018"]
[Site "Gebze"]
[Date "2018.09.12"]
[Round "8"]
[White "Heydarova, Aytaj"]
[Black "Li, Xinyu"]
[Result "0-1"]
[ECO "A07"]
[WhiteElo "1948"]
[BlackElo "2086"]
[Annotator "NA"]
[PlyCount "116"]
[EventDate "2018.09.05"]
[EventType "swiss"]
[EventCountry "TUR"]
[SourceTitle "playchess.com"]
[Source "ChessBase"]
[SourceQuality "1"]
[TimeControl "40/5400+30:1800+30"]

1. Nf3 {[%emt 0:00:30]} d5 {[%emt 0:00:30]} 2. g3 {[%emt 0:00:30]} Nf6 {[%emt 0:00:30]} 3. Bg2 {[%emt 0:00:30]} Bf5 {[%emt 0:00:00]} 4. d3 {[%emt 0:00:00]} e6 {[%emt 0:00:00]} 5. O-O {[%emt 0:00:00]} c6 {[%emt 0:00:30]} 6. Nbd2 {[%emt 0:00:00]} Be7 {[%emt 0:00:30]} 7. Qe1 {[%emt 0:00:00]} h6 {[%emt 0:00:30]} 8. e4 {[%emt 0:00:00]} Bh7 {[%emt 0:00:30]} 9. Qe2 {[%emt 0:00:00]} O-O {[%emt 0:00:00]} 10. e5 {[%emt 0:00:00]} Nfd7 {[%emt 0:00:00]} 11. Re1 {[%emt 0:00:00]} Qc7 {[%emt 0:05:30]} 12. Nf1 {[%emt 0:03:30]} c5 {[%emt 0:04:30]} 13. h4 {[%emt 0:01:30]} Nc6 {[%emt 0:00:30]} 14. Bf4 {[%emt 0:00:30]} b5 {[%emt 0:00:30]} 15. g4 {[%emt 0:04:30]} Rab8 {[%emt 0:14:30]} 16. g5 {[%emt 0:20:30]} h5 {[%emt 0:00:30]} 17. Ng3 {[%emt 0:00:30]} Bg6 {[%emt 0:00:30]} 18. Nh2 {[%emt 0:02:30]} Nd4 {[%emt 0:02:30]} 19. Qd1 {[%emt 0:00:30]} Nc6 {[%emt 0:11:30]} 20. Nxh5 {[%emt 0:08:30]} Ncxe5 {[%emt 0:01:30]} 21. Bg3 {[%emt 0:12:30]} Bd6 {[%emt 0:01:30]} 22. Nf4 {[%emt 0:01:30]} Bf5 {[%emt 0:02:30]} 23. Qd2 {[%emt 0:08:30]} Ng6 {[%emt 0:04:30]} 24. Nxg6 {[%emt 0:01:30]} fxg6 {[%emt 0:00:30]} 25. Bxd6 {[%emt 0:02:30]} Qxd6 {[%emt 0:00:30]} 26. Re2 {[%emt 0:09:30]} Rf7 {[%emt 0:08:30]} 27. Rae1 {[%emt 0:04:44]} Rbf8 {[%emt 0:00:30]} 28. d4 {[%emt 0:01:10]} Nb8 {[%emt 0:06:30]} 29. dxc5 {[%emt 0:05:50]} Qxc5 {[%emt 0:00:30]} 30. b3 {[%emt 0:00:00]} Nc6 {[%emt 0:05:30]} 31. c3 {[%emt 0:03:07]} Rd8 {[%emt 0:05:30]} 32. Qe3 {[%emt 0:02:36]} Qd6 {[%emt 0:04:30]} 33. Rd2 {[%emt 0:01:58]} b4 {[%emt 0:01:31]} 34. cxb4 {[%emt 0:01:58]} Qxb4 {[%emt 0:00:16]} 35. Nf3 {[%emt 0:03:34]} d4 {[%emt 0:07:39]} 36. Qe2 {[%emt 0:00:41]} Bg4 {[%emt 0:02:32]} 37. Rd3 {[%emt 0:01:37]} e5 {[%emt 0:03:57]} 38. Rc1 {[%emt 0:00:26]} Qb5 {[%emt 0:04:15]} 39. a4 {[%emt 0:00:41]} Qa6 {[%emt 0:00:25]} 40. Qe4 {[%emt 0:00:00]} Nb4 {[%emt 0:00:00]} 41. Rd2 {[%emt 0:03:08]} Bxf3 {[%emt 0:03:55]} 42. Bxf3 {[%emt 0:00:00]} Qd6 {[%emt 0:00:30]} 43. Bg2 {[%emt 0:03:00]} Re8 {[%emt 0:12:47]} 44. Rc4 {[%emt 0:04:30]} Rd8 {[%emt 0:04:49]} 45. a5 {[%emt 0:03:30]} a6 {[%emt 0:01:44]} 46. Bh3 {[%emt 0:05:03]} Nd5 {[%emt 0:02:30]} 47. Rdc2 {[%emt 0:04:46]} Nc3 {[%emt 0:03:27]} 48. Qc6 {[%emt 0:04:04]} Rf4 {[%emt 0:02:37]} 49. Qxd6 {[%emt 0:05:38]} Rxd6 {[%emt 0:00:30]} 50. Rc8+ {[%emt 0:00:00]} Rf8 {[%emt 0:00:14]} 51. Rc5 {[%emt 0:00:21]} e4 {[%emt 0:00:45]} 52. Re5 {[%emt 0:00:54]} Kf7 {[%emt 0:00:58]} 53. h5 {[%emt 0:00:50]} gxh5 {[%emt 0:01:01]} 54. Bf5 {[%emt 0:00:32]} Re8 {[%emt 0:01:38]} 55. Rxe8 {[%emt 0:01:22]} Kxe8 {[%emt 0:00:05]} 56. Kh2 {[%emt 0:00:23]} g6 {[%emt 0:00:44]} 57. Bh3 {[%emt 0:00:45]} Rd5 {[%emt 0:01:08]} 58. Rd2 {[%emt 0:00:42]} d3 {[%emt 0:00:51]} 0-1

[Event "World Junior U20 Girls 2018"]
[Site "Gebze"]
[Date "2018.09.12"]
[Round "8"]
[White "Hereklioglu, Sude"]
[Black "Caballero Quijano, Mitzy Mishell"]
[Result "1-0"]
[ECO "C00"]
[WhiteElo "1930"]
[BlackElo "2034"]
[Annotator "NA"]
[PlyCount "63"]
[EventDate "2018.09.05"]
[EventType "swiss"]
[EventCountry "TUR"]
[SourceTitle "playchess.com"]
[Source "ChessBase"]
[SourceQuality "1"]
[TimeControl "40/5400+30:1800+30"]

1. e4 {[%emt 0:00:30]} e6 {[%emt 0:00:30]} 2. Nf3 {[%emt 0:01:30]} d5 {[%emt 0:00:30]} 3. e5 {[%emt 0:01:30]} c5 {[%emt 0:00:30]} 4. d3 {[%emt 0:00:30]} Nc6 {[%emt 0:01:30]} 5. g3 {[%emt 0:01:30]} Qc7 {[%emt 0:04:30]} 6. Qe2 {[%emt 0:03:30]} Nge7 {[%emt 0:00:30]} 7. c3 {[%emt 0:03:30]} Ng6 {[%emt 0:09:30]} 8. d4 {[%emt 0:04:30]} b6 {[%emt 0:03:30]} 9. Be3 {[%emt 0:16:30]} cxd4 {[%emt 0:11:30]} 10. cxd4 {[%emt 0:03:30]} Bb4+ {[%emt 0:10:30]} 11. Nbd2 {[%emt 0:10:30]} O-O {[%emt 0:00:30]} 12. a3 {[%emt 0:07:30]} Be7 {[%emt 0:00:30]} 13. h4 {[%emt 0:00:30]} a5 {[%emt 0:26:30]} 14. Ng5 {[%emt 0:16:30]} h6 {[%emt 0:00:30]} 15. Nh3 {[%emt 0:01:30]} Ba6 {[%emt 0:08:15]} 16. Qg4 {[%emt 0:01:30]} Bxf1 {[%emt 0:01:18]} 17. Kxf1 {[%emt 0:00:30]} Ngxe5 {[%emt 0:13:55]} 18. dxe5 {[%emt 0:00:30]} Qxe5 {[%emt 0:01:00]} 19. Bxh6 {[%emt 0:02:30]} Qxb2 {[%emt 0:02:27]} 20. Kg2 {[%emt 0:04:51]} Qd4 {[%emt 0:01:12]} 21. Nf4 {[%emt 0:05:09]} f5 {[%emt 0:00:18]} 22. Qg6 {[%emt 0:00:47]} Qf6 {[%emt 0:00:05]} 23. Bg5 {[%emt 0:00:22]} Qxg6 {[%emt 0:01:19]} 24. Nxg6 {[%emt 0:00:30]} Bxg5 {[%emt 0:00:30]} 25. hxg5 {[%emt 0:00:00]} Rfe8 {[%emt 0:00:00]} 26. Rac1 {[%emt 0:01:23]} Kf7 {[%emt 0:00:17]} 27. Rxc6 {[%emt 0:00:30]} Kxg6 {[%emt 0:00:00]} 28. f4 {[%emt 0:00:04]} b5 {[%emt 0:00:44]} 29. Nf3 {[%emt 0:00:10]} Kf7 {[%emt 0:00:00]} 30. Rc7+ {[%emt 0:01:31]} Kg8 {[%emt 0:00:15]} 31. g6 {[%emt 0:00:46]} Rac8 {[%emt 0:00:29]} 32. Rhc1 {[%emt 0:00:54]} 1-0

[Event "World Junior U20 Girls 2018"]
[Site "Gebze"]
[Date "2018.09.12"]
[Round "8"]
[White "Tian, Shi Yuan"]
[Black "Santeramo, Alessia"]
[Result "1/2-1/2"]
[ECO "E11"]
[WhiteElo "1923"]
[BlackElo "2124"]
[Annotator "NA"]
[PlyCount "60"]
[EventDate "2018.09.05"]
[EventType "swiss"]
[EventCountry "TUR"]
[SourceTitle "playchess.com"]
[Source "ChessBase"]
[SourceQuality "1"]
[TimeControl "40/5400+30:1800+30"]

1. d4 {[%emt 0:00:30]} Nf6 {[%emt 0:00:30]} 2. Nf3 {[%emt 0:00:30]} e6 {[%emt 0:00:00]} 3. c4 {[%emt 0:00:30]} Bb4+ {[%emt 0:00:00]} 4. Bd2 {[%emt 0:00:00]} Qe7 {[%emt 0:00:00]} 5. e3 {[%emt 0:03:00]} b6 {[%emt 0:02:00]} 6. a3 {[%emt 0:00:30]} Bxd2+ {[%emt 0:01:30]} 7. Nbxd2 {[%emt 0:01:30]} Bb7 {[%emt 0:00:00]} 8. Qc2 {[%emt 0:06:30]} d6 {[%emt 0:04:00]} 9. Be2 {[%emt 0:05:30]} O-O {[%emt 0:01:30]} 10. O-O {[%emt 0:01:30]} e5 {[%emt 0:08:30]} 11. d5 {[%emt 0:04:30]} Nbd7 {[%emt 0:03:30]} 12. Rfe1 {[%emt 0:13:30]} g6 {[%emt 0:05:30]} 13. e4 {[%emt 0:05:30]} Nh5 {[%emt 0:01:30]} 14. g3 {[%emt 0:01:30]} Ng7 {[%emt 0:00:30]} 15. Bf1 {[%emt 0:08:30]} a5 {[%emt 0:07:30]} 16. b4 {[%emt 0:04:30]} Nf6 {[%emt 0:05:30]} 17. Bh3 {[%emt 0:04:30]} Bc8 {[%emt 0:01:30]} 18. Bxc8 {[%emt 0:00:30]} Rfxc8 {[%emt 0:00:30]} 19. Qc3 {[%emt 0:03:30]} Nd7 {[%emt 0:01:30]} 20. Qe3 {[%emt 0:01:30]} Qf8 {[%emt 0:17:30]} 21. Qh6 {[%emt 0:06:30]} Nh5 {[%emt 0:03:30]} 22. Qxf8+ {[%emt 0:01:30]} Rxf8 {[%emt 0:00:30]} 23. Kg2 {[%emt 0:02:30]} h6 {[%emt 0:00:30]} 24. Nh4 {[%emt 0:02:30]} Kh7 {[%emt 0:00:30]} 25. h3 {[%emt 0:03:15]} Ra7 {[%emt 0:02:30]} 26. Nb3 {[%emt 0:02:04]} axb4 {[%emt 0:04:30]} 27. axb4 {[%emt 0:00:30]} Rfa8 {[%emt 0:00:00]} 28. Rxa7 {[%emt 0:00:15]} Rxa7 {[%emt 0:00:00]} 29. Ra1 {[%emt 0:00:30]} Rxa1 {[%emt 0:00:00]} 30. Nxa1 {[%emt 0:00:00]} Kg7 {[%emt 0:04:00]} 1/2-1/2

[Event "World Junior U20 Girls 2018"]
[Site "Gebze"]
[Date "2018.09.12"]
[Round "8"]
[White "Koo, Wei Xin Rosamund"]
[Black "Celik, Eylul"]
[Result "0-1"]
[ECO "D30"]
[WhiteElo "1918"]
[BlackElo "2014"]
[Annotator "NA"]
[PlyCount "74"]
[EventDate "2018.09.05"]
[EventType "swiss"]
[EventCountry "TUR"]
[SourceTitle "playchess.com"]
[Source "ChessBase"]
[SourceQuality "1"]
[TimeControl "40/5400+30:1800+30"]

1. c4 {[%emt 0:00:30]} c6 {[%emt 0:00:30]} 2. Nf3 {[%emt 0:00:00]} d5 {[%emt 0:00:30]} 3. d4 {[%emt 0:00:00]} e6 {[%emt 0:00:00]} 4. Qc2 {[%emt 0:01:30]} dxc4 {[%emt 0:00:00]} 5. Qxc4 {[%emt 0:00:30]} b5 {[%emt 0:00:30]} 6. Qc2 {[%emt 0:01:30]} Bb7 {[%emt 0:00:30]} 7. Nc3 {[%emt 0:05:30]} Nf6 {[%emt 0:00:30]} 8. Bg5 {[%emt 0:01:30]} Nbd7 {[%emt 0:02:30]} 9. e4 {[%emt 0:04:30]} h6 {[%emt 0:00:30]} 10. Bd2 {[%emt 0:02:30]} Bb4 {[%emt 0:10:30]} 11. e5 {[%emt 0:06:30]} Bxc3 {[%emt 0:00:30]} 12. bxc3 {[%emt 0:00:30]} Nd5 {[%emt 0:00:30]} 13. a4 {[%emt 0:10:30]} a6 {[%emt 0:01:30]} 14. c4 {[%emt 0:05:30]} bxc4 {[%emt 0:00:30]} 15. Bxc4 {[%emt 0:00:00]} a5 {[%emt 0:02:30]} 16. O-O {[%emt 0:06:00]} O-O {[%emt 0:01:30]} 17. Ba2 {[%emt 0:04:30]} Re8 {[%emt 0:02:30]} 18. Bb1 {[%emt 0:01:30]} Nf8 {[%emt 0:00:30]} 19. Qe4 {[%emt 0:02:30]} Qe7 {[%emt 0:10:30]} 20. Qg4 {[%emt 0:06:30]} Kh8 {[%emt 0:01:30]} 21. Re1 {[%emt 0:15:30]} c5 {[%emt 0:07:30]} 22. dxc5 {[%emt 0:03:30]} Qxc5 {[%emt 0:02:30]} 23. Bd3 {[%emt 0:01:17]} Ba6 {[%emt 0:05:30]} 24. Rec1 {[%emt 0:01:16]} Qe7 {[%emt 0:00:30]} 25. Bb5 {[%emt 0:04:08]} Bxb5 {[%emt 0:01:30]} 26. axb5 {[%emt 0:00:03]} Reb8 {[%emt 0:04:30]} 27. Nd4 {[%emt 0:01:00]} Nb4 {[%emt 0:01:30]} 28. Nc6 {[%emt 0:03:22]} Nxc6 {[%emt 0:00:30]} 29. bxc6 {[%emt 0:00:00]} Qc7 {[%emt 0:01:30]} 30. Qd4 {[%emt 0:09:47]} Rd8 {[%emt 0:03:30]} 31. Qc3 {[%emt 0:00:04]} a4 {[%emt 0:01:30]} 32. Be3 {[%emt 0:00:33]} Ng6 {[%emt 0:00:30]} 33. f4 {[%emt 0:00:56]} Ne7 {[%emt 0:01:30]} 34. Bc5 {[%emt 0:02:04]} Nxc6 {[%emt 0:01:30]} 35. Kh1 {[%emt 0:00:32]} Qd7 {[%emt 0:05:30]} 36. Bd6 {[%emt 0:01:16]} Na5 {[%emt 0:02:30]} 37. Qc7 {[%emt 0:00:57]} Nb3 {[%emt 0:00:30]} 0-1